fUSD/lending_fUSD_20251024
["ID","MTS","AMOUNT","RATE_DAILY","PERIOD"]
[392301878,1761322295664,-500.0,0.00041369,30]
[392301879,1761322295679,-612.78,0.00041369,30]
[392301880,1761322295694,-492.14004297,0.00041369,30]
[392301881,1761322295709,-500.0,0.00041369,30]
[392301882,1761322295724,-500.0,0.00041369,30]
[392301883,1761322295744,-500.0,0.00041369,30]
[392301884,1761322295761,-500.0,0.00041369,30]
[392301885,1761322295781,-500.0,0.00041369,30]
[392301886,1761322295798,-571.0,0.00041369,30]
[392301887,1761322295814,-500.0,0.00041369,30]
[392301888,1761322295830,-830.29,0.00041369,30]
[392301889,1761322295847,-945.03,0.00041369,30]
[392301890,1761322295862,-500.0,0.00041369,30]
[392301891,1761322295878,-1033.26,0.00041369,30]
[392301892,1761322295893,-500.0,0.00041369,30]
[392301893,1761322295910,-663.7,0.00041369,30]
[392301894,1761322295927,-1023.75,0.00041369,30]
[392301895,1761322295944,-500.0,0.00041369,30]
[392301896,1761322295960,-500.0,0.00041369,30]
[392301897,1761322295977,-696.08,0.00041369,30]
[392301898,1761322295992,-641.73,0.00041369,30]
[392301899,1761322296009,-500.0,0.00041369,30]
[392301900,1761322296024,-500.0,0.00041369,30]
[392301901,1761322296039,-579.17,0.00041369,30]
[392301902,1761322296055,-500.0,0.00041369,30]
[392301903,1761322296070,-500.0,0.00041369,30]
[392301904,1761322296085,-513.45,0.00041369,30]
[392301905,1761322296100,-500.0,0.00041369,30]
[392301906,1761322296115,-518.78444403,0.00041369,30]
[392301907,1761322296130,-500.0,0.00041369,30]
[392301908,1761322296145,-500.0,0.00041369,30]
[392301909,1761322296161,-669.12,0.00041369,30]
[392301910,1761322296175,-500.0,0.00041369,30]
[392301911,1761322296190,-500.0,0.00041369,30]
[392301912,1761322296204,-500.0,0.00041369,30]
[392301913,1761322296219,-500.0,0.00041369,30]
[392301914,1761322296495,-419.03327134,0.00041369,30]
[392301915,1761322296504,-500.0,0.00041369,30]
[392301916,1761322296513,-516.46,0.00041369,30]
[392301917,1761322296523,-501.88,0.00041369,30]
[392301918,1761322296532,-704.55,0.00041369,30]
[392301919,1761322296541,-500.0,0.00041369,30]
[392301920,1761322296550,-641.27,0.00041369,30]
[392301921,1761322296559,-793.21,0.00041369,30]
[392301922,1761322296569,-500.0,0.00041369,30]
[392301923,1761322296580,-500.0,0.00041369,30]
[392301924,1761322296589,-500.0,0.00041369,30]
[392301925,1761322296599,-500.0,0.00041369,30]
[392301926,1761322296609,-498.26073325,0.00041369,30]
[392301927,1761322296618,-564.0,0.00041369,30]
[392301928,1761322296628,-500.0,0.00041369,30]
[392301929,1761322296637,-681.34,0.00041369,30]
[392301930,1761322296646,-500.0,0.00041369,30]
[392301931,1761322296656,-500.0,0.00041369,30]
[392301932,1761322296666,-500.0,0.00041369,30]
[392301933,1761322296675,-500.0,0.00041369,30]
[392301934,1761322296684,-500.0,0.00041369,30]
[392301935,1761322296695,-583.52,0.00041369,30]
[392301936,1761322296704,-500.0,0.00041369,30]
[392301937,1761322296717,-720.15,0.00041369,30]
[392301938,1761322296727,-500.0,0.00041369,30]
[392301939,1761322296742,-500.0,0.00041369,30]
[392301940,1761322296752,-500.0,0.00041369,30]
[392301941,1761322296762,-500.0,0.00041369,30]
[392301942,1761322296772,-500.0,0.00041369,30]
[392301943,1761322296783,-500.0,0.00041369,30]
[392301944,1761322296792,-522.17,0.00041369,30]
[392301945,1761322296802,-500.0,0.00041369,30]
[392301946,1761322296815,-553.64,0.00041369,30]
[392301947,1761322296824,-500.0,0.00041369,30]
[392301948,1761322296834,-500.0,0.00041369,30]
[392301949,1761322296844,-500.0,0.00041369,30]
[392301950,1761322296853,-500.0,0.00041369,30]
[392301951,1761322296864,-500.0,0.00041369,30]
[392301952,1761322296873,-500.0,0.00041369,30]
[392301953,1761322296883,-500.0,0.00041369,30]
[392301954,1761322296894,-500.0,0.00041369,30]
[392301955,1761322296903,-500.0,0.00041369,30]
[392301956,1761322296913,-500.0,0.00041369,30]
[392301957,1761322296923,-500.0,0.00041369,30]
[392301958,1761322296932,-516.58,0.00041369,30]
[392301959,1761322296942,-500.0,0.00041369,30]
[392301960,1761322296952,-500.0,0.00041369,30]
[392301961,1761322296962,-500.0,0.00041369,30]
[392301962,1761322296972,-500.0,0.00041369,30]
[392301963,1761322296982,-500.0,0.00041369,30]
[392301964,1761322296992,-428.99924006,0.00041369,30]
[392301965,1761322297003,-500.0,0.00041369,30]
[392301966,1761322297013,-500.0,0.00041369,30]
[392301967,1761322297023,-500.0,0.00041369,30]
[392301968,1761322297032,-3165.94,0.00041369,30]
[392301969,1761322297042,-577.34,0.00041369,30]
[392301970,1761322297051,-500.0,0.00041369,30]
[392301971,1761322297061,-500.0,0.00041369,30]
[392301972,1761322297071,-500.0,0.00041369,30]
[392301973,1761322297081,-500.0,0.00041369,30]
[392301974,1761322297090,-781.42,0.00041369,30]
[392301975,1761322297100,-500.0,0.00041369,30]
[392301976,1761322297109,-530.21094953,0.00041369,30]
[392301977,1761322297120,-592.04,0.00041369,30]
[392301978,1761322297130,-500.0,0.00041369,30]
[392301979,1761322297141,-500.0,0.00041369,30]
[392301980,1761322297150,-507.17,0.00041369,30]
[392301981,1761322297160,-500.0,0.00041369,30]
[392301982,1761322297169,-500.0,0.00041369,30]
[392301983,1761322297179,-500.0,0.00041369,30]
[392301984,1761322297188,-500.0,0.00041369,30]
[392301985,1761322297198,-500.0,0.00041369,30]
[392301986,1761322297207,-500.0,0.00041369,30]
[392301987,1761322297217,-500.0,0.00041369,30]
[392301988,1761322297227,-500.0,0.00041369,30]
[392301989,1761322297236,-500.0,0.00041369,30]
[392301990,1761322297246,-627.51,0.00041369,30]
[392301991,1761322297255,-500.0,0.00041369,30]
[392301992,1761322297266,-500.0,0.00041369,30]
[392301993,1761322297275,-500.0,0.00041369,30]
[392301994,1761322297285,-500.0,0.00041369,30]
[392301995,1761322297295,-658.05,0.00041369,30]
[392301996,1761322297304,-500.0,0.00041369,30]
[392301997,1761322297314,-500.0,0.00041369,30]
[392301998,1761322297325,-500.0,0.00041369,30]
[392301999,1761322297334,-500.0,0.00041369,30]
[392302000,1761322297344,-43111.76,0.00041369,30]
[392302001,1761322297353,-500.0,0.00041369,30]
[392302002,1761322297363,-500.0,0.00041369,30]
[392302003,1761322297372,-177.43540198,0.00041369,30]
[392302004,1761322297382,-500.0,0.00041369,30]
[392302005,1761322297391,-500.0,0.00041369,30]
[392302006,1761322297400,-824.03,0.00041369,30]
[392302007,1761322297410,-707.49,0.00041369,30]
[392302008,1761322297419,-572.74,0.00041369,30]
[392302009,1761322297429,-500.0,0.00041369,30]
[392302010,1761322297438,-500.0,0.00041369,2]
[392302011,1761322297449,-500.0,0.00041369,30]
[392302012,1761322297458,-1143.07,0.00041369,30]
[392302013,1761322297468,-560.87,0.00041369,30]
[392302014,1761322297478,-500.0,0.00041369,120]
[392302015,1761322297488,-500.0,0.00041369,30]
[392302016,1761322297497,-500.0,0.00041369,30]
[392302017,1761322297507,-500.0,0.00041369,30]
[392302018,1761322297517,-500.0,0.00041369,30]
[392302019,1761322297527,-500.0,0.00041369,30]
[392302020,1761322297536,-150.08591281,0.00041369,30]
[392302021,1761322297546,-596.94,0.00041369,30]
[392302022,1761322297555,-329.46562577,0.00041369,30]
[392302023,1761322297565,-654.5,0.00041369,30]
[392302024,1761322297574,-507.69,0.00041369,30]
[392302025,1761322297584,-500.0,0.00041369,30]
[392302026,1761322297594,-500.0,0.00041369,30]
[392302027,1761322297603,-500.0,0.00041369,30]
[392302028,1761322297613,-976.73,0.00041369,30]
[392302029,1761322297623,-500.0,0.00041369,30]
[392302030,1761322297633,-526.28,0.00041369,30]
[392302031,1761322297643,-766.16,0.00041369,30]
[392302032,1761322297653,-500.0,0.00041369,30]
[392302033,1761322297662,-500.0,0.00041369,30]
[392302034,1761322297672,-500.0,0.00041369,30]
[392302035,1761322297682,-500.0,0.00041369,30]
[392302036,1761322297691,-500.0,0.00041369,30]
[392302037,1761322297702,-500.0,0.00041369,30]
[392302038,1761322297711,-500.0,0.00041369,30]
[392302039,1761322297721,-500.0,0.00041369,5]
[392302040,1761322297734,-500.0,0.00041369,30]
[392302041,1761322297744,-500.0,0.00041369,30]
[392302042,1761322297754,-598.92,0.00041369,30]
[392302043,1761322297764,-500.0,0.00041369,30]
[392302044,1761322297774,-843.03,0.00041369,30]
[392302045,1761322297784,-500.0,0.00041369,30]
[392302046,1761322297794,-500.0,0.00041369,30]
[392302047,1761322297804,-500.0,0.00041369,30]
[392302048,1761322297813,-547.11,0.00041369,30]
[392302049,1761322297823,-905.81,0.00041369,30]
[392302050,1761322297832,-500.0,0.00041369,30]
[392302051,1761322297842,-500.0,0.00041369,30]
[392302052,1761322297851,-500.0,0.00041369,30]
[392302053,1761322297861,-649.83,0.00041369,30]
[392302054,1761322297871,-605.46,0.00041369,30]
[392302055,1761322297881,-245.31768067,0.00041369,30]
[392302056,1761322297891,-500.0,0.00041369,30]
[392302057,1761322297900,-500.0,0.00041369,30]
[392302058,1761322297910,-500.0,0.00041369,30]
[392302059,1761322297920,-500.0,0.00041369,30]
[392302060,1761322297930,-500.0,0.00041369,30]
[392302061,1761322297940,-500.0,0.00041369,30]
[392302062,1761322297949,-500.0,0.00041369,30]
[392302063,1761322297958,-500.0,0.00041369,30]
[392302064,1761322297968,-500.0,0.00041369,30]
[392302065,1761322297977,-675.1,0.00041369,30]
[392302066,1761322297988,-500.0,0.00041369,30]
[392302067,1761322297997,-500.0,0.00041369,30]
[392302068,1761322298007,-500.0,0.00041369,30]
[392302069,1761322298017,-500.0,0.00041369,30]
[392302070,1761322298027,-500.0,0.00041369,30]
[392302071,1761322298036,-500.0,0.00041369,30]
[392302072,1761322298046,-500.0,0.00041369,30]
[392302073,1761322298057,-459.33942245,0.00041369,30]
[392302074,1761322298067,-818.3,0.00041369,30]
[392302075,1761322298077,-500.0,0.00041369,30]
[392302076,1761322298087,-500.0,0.00041369,30]
[392302077,1761322298098,-500.0,0.00041369,30]
[392302078,1761322298108,-500.0,0.00041369,30]
[392302079,1761322298118,-500.0,0.00041369,30]
[392302080,1761322298128,-500.0,0.00041369,30]
[392302081,1761322298138,-500.0,0.00041369,30]
[392302082,1761322298148,-554.2,0.00041369,30]
[392302083,1761322298158,-500.0,0.00041369,30]
[392302084,1761322298168,-500.0,0.00041369,30]
[392302085,1761322298178,-500.0,0.00041369,30]
[392302086,1761322298188,-851.07,0.00041369,30]
[392302087,1761322298198,-500.0,0.00041369,30]
[392302088,1761322298208,-500.0,0.00041369,30]
[392302089,1761322298218,-634.48,0.00041369,30]
[392302090,1761322298228,-500.0,0.00041369,30]
[392302091,1761322298238,-1091.0,0.00041369,30]
[392302092,1761322298249,-943.35,0.00041369,30]
[392302093,1761322298259,-500.0,0.00041369,30]
[392302094,1761322298269,-500.0,0.00041369,3]
[392302095,1761322298279,-500.0,0.00041369,2]
[392302096,1761322298290,-500.0,0.00041369,30]
[392302097,1761322298300,-500.0,0.00041369,30]
[392302098,1761322298310,-500.0,0.00041369,30]
[392302099,1761322298320,-500.0,0.00041369,30]
[392302100,1761322298331,-500.0,0.00041369,30]
[392302101,1761322298341,-726.59,0.00041369,30]
[392302102,1761322298351,-500.0,0.00041369,30]
[392302103,1761322298361,-500.0,0.00041369,30]
[392302104,1761322298371,-500.0,0.00041369,30]
[392302105,1761322298381,-500.0,0.00041369,30]
[392302106,1761322298391,-530.52,0.00041369,30]
[392302107,1761322298401,-554.24,0.00041369,30]
[392302108,1761322298411,-500.0,0.00041369,30]
[392302109,1761322298421,-500.0,0.00041369,30]
[392302110,1761322298431,-500.0,0.00041369,30]
[392302111,1761322298441,-500.0,0.00041369,30]
[392302112,1761322298451,-500.0,0.00041369,30]
[392302113,1761322298461,-534.6,0.00041369,30]
[392302114,1761322298471,-500.0,0.00041369,30]
[392302115,1761322298482,-500.0,0.00041369,30]
[392302116,1761322298492,-500.0,0.00041369,30]
[392302117,1761322298503,-703.61,0.00041369,30]
[392302118,1761322298514,-500.0,0.00041369,30]
[392302119,1761322298524,-500.0,0.00041369,30]
[392302120,1761322298534,-619.86,0.00041369,30]
[392302121,1761322298544,-500.0,0.00041369,30]
[392302122,1761322298554,-500.0,0.00041369,30]
[392302123,1761322298564,-500.0,0.00041369,30]
[392302124,1761322298574,-540.26,0.00041369,30]
[392302125,1761322298583,-500.0,0.00041369,30]
[392302126,1761322298593,-280.43885354,0.00041369,30]
[392302127,1761322298603,-500.0,0.00041369,30]
[392302128,1761322298613,-500.0,0.00041369,30]
[392302129,1761322298623,-500.0,0.00041369,30]
[392302130,1761322298633,-506.89,0.00041369,30]
[392302131,1761322298643,-514.02200283,0.00041369,30]
[392302132,1761322298653,-500.0,0.00041369,30]
[392302133,1761322298663,-500.0,0.00041369,30]
[392302134,1761322298673,-500.0,0.00041369,30]
[392302135,1761322298684,-500.0,0.00041369,30]
[392302136,1761322298694,-500.0,0.00041369,30]
[392302137,1761322298704,-500.0,0.00041369,30]
[392302138,1761322298714,-500.0,0.00041369,30]
[392302139,1761322298724,-500.0,0.00041369,30]
[392302140,1761322298737,-500.0,0.00041369,30]
[392302141,1761322298747,-500.0,0.00041369,30]
[392302142,1761322298757,-730.1,0.00041369,30]
[392302143,1761322298767,-500.0,0.00041369,30]
[392302144,1761322298779,-500.0,0.00041369,30]
[392302145,1761322298789,-500.0,0.00041369,30]
[392302146,1761322298798,-500.0,0.00041369,30]
[392302147,1761322298807,-500.0,0.00041369,30]
[392302148,1761322298818,-500.0,0.00041369,30]
[392302149,1761322298827,-500.0,0.00041369,30]
[392302150,1761322298837,-581.74,0.00041369,30]
[392302151,1761322298848,-500.0,0.00041369,30]
[392302152,1761322298858,-500.0,0.00041369,30]
[392302153,1761322298869,-604.04,0.00041369,30]
[392302154,1761322298878,-500.0,0.00041369,30]
[392302155,1761322298887,-500.0,0.00041369,30]
[392302156,1761322298897,-500.0,0.00041369,2]
[392302157,1761322298907,-500.0,0.00041369,30]
[392302158,1761322298917,-611.69,0.00041369,30]
[392302159,1761322298927,-500.0,0.00041369,30]
[392302160,1761322298937,-500.0,0.00041369,30]
[392302161,1761322298947,-353.28111844,0.00041369,30]
[392302162,1761322298958,-500.0,0.00041369,30]
[392302163,1761322298969,-500.0,0.00041369,30]
[392302164,1761322298978,-500.0,0.00041369,30]
[392302165,1761322298988,-513.05,0.00041369,30]
[392302166,1761322298999,-696.18,0.00041369,30]
[392302167,1761322299009,-1807.7,0.00041369,30]
[392302168,1761322299018,-500.0,0.00041369,30]
[392302169,1761322299028,-500.0,0.00041369,30]
[392302170,1761322299038,-500.0,0.00041369,2]
[392302171,1761322299048,-500.0,0.00041369,30]
[392302172,1761322299058,-500.0,0.00041369,30]
[392302173,1761322299068,-585.0810967,0.00041369,30]
[392302174,1761322299077,-500.0,0.00041369,30]
[392302175,1761322299088,-500.0,0.00041369,30]
[392302176,1761322299098,-1380.28,0.00041369,30]
[392302177,1761322299108,-500.0,0.00041369,30]
[392302178,1761322299118,-606.24,0.00041369,30]
[392302179,1761322299128,-300.0,0.00041369,2]
[392302180,1761322299138,-500.0,0.00041369,120]
[392302181,1761322299148,-783.69,0.00041369,30]
[392302182,1761322299158,-500.0,0.00041369,30]
[392302183,1761322299168,-806.84,0.00041369,30]
[392302184,1761322299179,-500.0,0.00041369,30]
[392302185,1761322299189,-500.0,0.00041369,30]
[392302186,1761322299198,-500.0,0.00041369,30]
[392302187,1761322299208,-2341.55,0.00041369,30]
[392302188,1761322299218,-500.0,0.00041369,30]
[392302189,1761322299228,-500.0,0.00041369,30]
[392302190,1761322299238,-500.0,0.00041369,30]
[392302191,1761322299247,-500.0,0.00041369,30]
[392302192,1761322299257,-500.0,0.00041369,30]
[392302193,1761322299266,-206.56059359,0.00041369,30]
[392302194,1761322299276,-500.0,0.00041369,30]
[392302195,1761322299286,-500.0,0.00041369,30]
[392302196,1761322299296,-500.0,0.00041369,30]
[392302197,1761322299306,-469.71348678,0.00041369,30]
[392302198,1761322299315,-500.0,0.00041369,30]
[392302199,1761322299325,-500.0,0.00041369,30]
[392302200,1761322299335,-500.0,0.00041369,30]
[392302201,1761322299345,-716.52,0.00041369,30]
[392302202,1761322299356,-500.0,0.00041369,30]
[392302203,1761322299366,-660.17,0.00041369,30]
[392302204,1761322299375,-531.64,0.00041369,30]
[392302205,1761322299384,-538.15,0.00041369,30]
[392302206,1761322299394,-500.0,0.00041369,30]
[392302207,1761322299404,-500.0,0.00041369,30]
[392302208,1761322299414,-500.0,0.00041369,30]
[392302209,1761322299424,-567.57,0.00041369,30]
[392302210,1761322299434,-500.0,0.00041369,30]
[392302211,1761322299445,-500.0,0.00041369,30]
[392302212,1761322299455,-1094.31,0.00041369,30]
[392302213,1761322299464,-762.28,0.00041369,30]
[392302214,1761322299475,-502.78156025,0.00041369,30]
[392302215,1761322299485,-500.0,0.00041369,30]
[392302216,1761322299494,-476.35224409,0.000414,120]
[392302217,1761322299504,-200.0,0.00041408,7]
[392302218,1761322299517,-200.0,0.00041408,7]
[392302219,1761322299531,-200.0,0.00041408,7]
[392302220,1761322299541,-200.0,0.00041408,7]
[392302221,1761322299551,-1500.0,0.00041416,10]
[392302222,1761322299561,-1000.0,0.00041416,10]
[392302223,1761322299571,-2000.0,0.00041416,10]
[392302224,1761322299580,-500.0,0.00041421,10]
[392302225,1761322299590,-1000.0,0.00041421,10]
[392302226,1761322299599,-424.30623614,0.00041421,10]
[392302227,1761322299609,-675.44385421,0.0004143,120]
[392302228,1761322299619,-1000.0,0.00041452,120]
[392302229,1761322299628,-1000.0,0.00041452,120]
[392302230,1761322299638,-1000.0,0.00041452,120]
[392302231,1761322299648,-1000.0,0.00041452,120]
[392302232,1761322299658,-1000.0,0.00041452,120]
[392302233,1761322299667,-1000.0,0.00041452,120]
[392302234,1761322299678,-1000.0,0.00041452,120]
[392302235,1761322299687,-1000.0,0.00041452,120]
[392302236,1761322299697,-1000.0,0.00041452,120]
[392302237,1761322299707,-1000.0,0.00041452,120]
[392302238,1761322299718,-1000.0,0.00041452,120]
[392302239,1761322299727,-1000.0,0.00041452,120]
[392302240,1761322299741,-1000.0,0.00041452,120]
[392302241,1761322299751,-1000.0,0.00041452,120]
[392302242,1761322299761,-1000.0,0.00041452,120]
[392302243,1761322299771,-1000.0,0.00041452,120]
[392302244,1761322299783,-1000.0,0.00041452,120]
[392302245,1761322299792,-1000.0,0.00041452,120]
[392302246,1761322299802,-951.5463294,0.00041452,120]
[392302247,1761322299813,-152.0,0.00041497,5]
[392302248,1761322299822,-177.70528975,0.00041543,120]
[392302249,1761322300028,-309.14897191,0.0004156,7]
[392302250,1761322300042,-229.08,0.00041595,120]
[392302251,1761322300052,-557.64,0.000416,30]
[392302252,1761322300061,-210.23270036,0.00041621,10]
[392302253,1761322300071,-1000.0,0.00041621,10]
[392302254,1761322300080,-234.859181,0.00041643,30]
[392302255,1761322300089,-808.712269,0.00041643,30]
[392302256,1761322300098,-277.693017,0.00041643,30]
[392302257,1761322300108,-500.0,0.00041643,30]
[392302258,1761322300117,-500.0,0.00041643,30]
[392302259,1761322300127,-500.0,0.00041643,30]
[392302260,1761322300136,-500.0,0.00041643,30]
[392302261,1761322300146,-607.67064349,0.00041643,30]
[392302262,1761322300156,-500.0,0.00041643,30]
[392302263,1761322300166,-500.0,0.00041643,30]
[392302264,1761322300175,-500.0,0.00041643,30]
[392302265,1761322300186,-500.0,0.00041643,30]
[392302266,1761322300196,-500.0,0.00041643,30]
[392302267,1761322300206,-500.0,0.00041643,30]
[392302268,1761322300216,-500.0,0.00041643,30]
[392302269,1761322300226,-622.47,0.00041643,30]
[392302270,1761322300235,-500.0,0.00041643,30]
[392302271,1761322300245,-509.02,0.00041643,30]
[392302272,1761322300255,-516.35,0.00041643,30]
[392302273,1761322300264,-500.0,0.00041643,30]
[392302274,1761322300274,-825.82,0.00041643,30]
[392302275,1761322300284,-500.0,0.00041643,30]
[392302276,1761322300294,-500.0,0.00041643,30]
[392302277,1761322300304,-500.0,0.00041643,30]
[392302278,1761322300313,-500.0,0.00041643,30]
[392302279,1761322300323,-500.0,0.00041643,30]
[392302280,1761322300332,-500.0,0.00041643,30]
[392302281,1761322300342,-500.0,0.00041643,30]
[392302282,1761322300351,-257.51590049,0.00041643,30]
[392302283,1761322300361,-500.0,0.00041643,30]
[392302284,1761322300372,-500.0,0.00041643,30]
[392302285,1761322300381,-607.61,0.00041643,30]
[392302286,1761322300391,-500.0,0.00041643,30]
[392302287,1761322300400,-500.0,0.00041643,30]
[392302288,1761322300410,-500.0,0.00041643,30]
[392302289,1761322300420,-618.87734172,0.00041643,30]
[392302290,1761322300430,-500.0,0.00041643,30]
[392302291,1761322300439,-500.0,0.00041643,30]
[392302292,1761322300449,-510.24,0.00041643,30]
[392302293,1761322300459,-500.0,0.00041643,30]
[392302294,1761322300469,-500.0,0.00041643,30]
[392302295,1761322300479,-500.0,0.00041643,30]
[392302296,1761322300488,-500.0,0.00041643,30]
[392302297,1761322300498,-500.0,0.00041643,30]
[392302298,1761322300508,-500.0,0.00041643,30]
[392302299,1761322300518,-500.0,0.00041643,2]
[392302300,1761322300527,-500.0,0.00041643,30]
[392302301,1761322300537,-500.0,0.00041643,30]
[392302302,1761322300546,-500.0,0.00041643,30]
[392302303,1761322300557,-500.0,0.00041643,30]
[392302304,1761322300567,-500.0,0.00041643,30]
[392302305,1761322300577,-500.0,0.00041643,30]
[392302306,1761322300588,-500.0,0.00041643,30]
[392302307,1761322300598,-500.0,0.00041643,30]
[392302308,1761322300608,-500.0,0.00041643,30]
[392302309,1761322300618,-500.0,0.00041643,30]
[392302310,1761322300627,-500.0,0.00041643,30]
[392302311,1761322300638,-500.0,0.00041643,30]
[392302312,1761322300647,-500.0,0.00041643,30]
[392302313,1761322300656,-600.0,0.00041643,30]
[392302314,1761322300667,-500.0,0.00041643,30]
[392302315,1761322300677,-500.0,0.00041643,30]
[392302316,1761322300687,-500.0,0.00041643,30]
[392302317,1761322300697,-500.0,0.00041643,30]
[392302318,1761322300707,-500.0,0.00041643,30]
[392302319,1761322300717,-500.0,0.00041643,30]
[392302320,1761322300726,-644.18,0.00041643,30]
[392302321,1761322300741,-500.0,0.00041643,30]
[392302322,1761322300752,-483.82701877,0.00041643,30]
[392302323,1761322300761,-500.0,0.00041643,30]
[392302324,1761322300771,-605.58549801,0.00041643,30]
[392302325,1761322300784,-626.86,0.00041643,30]
[392302326,1761322300794,-500.0,0.00041643,30]
[392302327,1761322300805,-500.0,0.00041643,30]
[392302328,1761322300816,-769.96,0.00041643,30]
[392302329,1761322300826,-500.0,0.00041643,30]
[392302330,1761322300836,-553.14647838,0.00041643,30]
[392302331,1761322300846,-500.0,0.00041643,30]
[392302332,1761322300856,-500.0,0.00041643,30]
[392302333,1761322300866,-501.35433576,0.00041643,2]
[392302334,1761322300875,-500.0,0.00041643,30]
[392302335,1761322300886,-500.0,0.00041643,30]
[392302336,1761322300897,-187.02599011,0.00041643,30]
[392302337,1761322300907,-538.58,0.00041643,30]
[392302338,1761322300916,-500.0,0.00041643,30]
[392302339,1761322300926,-500.0,0.00041643,30]
[392302340,1761322300936,-500.0,0.00041643,30]
[392302341,1761322300945,-500.0,0.00041643,30]
[392302342,1761322300956,-500.0,0.00041643,30]
[392302343,1761322300965,-500.0,0.00041643,30]
[392302344,1761322300976,-500.0,0.00041643,30]
[392302345,1761322300985,-500.0,0.00041643,30]
[392302347,1761322300995,-500.0,0.00041643,30]
[392302348,1761322301005,-500.0,0.00041643,30]
[392302349,1761322301015,-500.0,0.00041643,30]
[392302351,1761322301024,-500.0,0.00041643,30]
[392302352,1761322301034,-500.0,0.00041643,30]
[392302354,1761322301043,-500.0,0.00041643,30]
[392302355,1761322301052,-500.0,0.00041643,30]
[392302356,1761322301066,-500.0,0.00041643,30]
[392302357,1761322301075,-801.91,0.00041643,30]
[392302358,1761322301084,-500.0,0.00041643,30]
[392302359,1761322301093,-500.0,0.00041643,30]
[392302360,1761322301102,-515.08,0.00041643,30]
[392302361,1761322301111,-627.53,0.00041643,30]
[392302362,1761322301120,-631.49,0.00041643,30]
[392302363,1761322301129,-500.0,0.00041643,30]
[392302364,1761322301138,-500.0,0.00041643,30]
[392302365,1761322301147,-500.0,0.00041643,30]
[392302366,1761322301156,-500.0,0.00041643,30]
[392302367,1761322301166,-500.0,0.00041643,30]
[392302368,1761322301175,-500.0,0.00041643,30]
[392302369,1761322301183,-858.53,0.00041643,30]
[392302370,1761322301192,-500.0,0.00041643,30]
[392302371,1761322301201,-500.0,0.00041643,30]
[392302372,1761322301211,-500.0,0.00041643,2]
[392302373,1761322301220,-500.0,0.00041643,30]
[392302374,1761322301228,-500.0,0.00041643,30]
[392302375,1761322301238,-500.0,0.00041643,30]
[392302376,1761322301247,-500.0,0.00041643,2]
[392302377,1761322301255,-500.0,0.00041643,30]
[392302378,1761322301264,-500.0,0.00041643,30]
[392302379,1761322301273,-500.0,0.00041643,30]
[392302380,1761322301282,-500.0,0.00041643,30]